fUSD/lending_fUSD_20260115
["ID","MTS","AMOUNT","RATE_DAILY","PERIOD"]
[401998881,1768453846538,-7022.90870388,0.00038336,3]
[401998883,1768453846547,-151.0,0.00038346,120]
[401998884,1768453846558,-151.0,0.00038346,120]
[401998886,1768453846567,-185.539531,0.00038346,120]
[401998888,1768453846577,-7022.90870388,0.00038346,3]
[401998891,1768453846586,-7022.90870388,0.00038346,3]
[401998892,1768453846595,-2000.0,0.00038356,120]
[401998894,1768453846604,-1283.457643,0.00038356,120]
[401998896,1768453846613,-1283.457643,0.00038356,120]
[401998899,1768453846623,-1283.457643,0.00038356,120]
[401998901,1768453846632,-1283.457643,0.00038356,120]
[401998903,1768453846643,-4237.0,0.00038356,30]
[401998905,1768453846652,-500.0,0.00038356,60]
[401998907,1768453846661,-839.7,0.00038356,120]
[401998909,1768453846671,-300.0,0.00038356,120]
[401998911,1768453846680,-300.0,0.00038356,120]
[401998913,1768453846689,-300.0,0.00038356,120]
[401998915,1768453846699,-300.0,0.00038356,120]
[401998917,1768453846710,-300.0,0.00038356,120]
[401998919,1768453846719,-300.0,0.00038356,120]
[401998921,1768453846728,-300.0,0.00038356,120]
[401998923,1768453846737,-300.0,0.00038356,120]
[401998925,1768453846746,-300.0,0.00038356,120]
[401998927,1768453846755,-300.0,0.00038356,120]
[401998929,1768453846764,-300.0,0.00038356,120]
[401998931,1768453846773,-300.0,0.00038356,120]
[401998933,1768453846784,-300.0,0.00038356,120]
[401998935,1768453846792,-300.0,0.00038356,120]
[401998937,1768453846801,-300.0,0.00038356,120]
[401998939,1768453846811,-300.0,0.00038356,120]
[401998941,1768453846820,-300.0,0.00038356,120]
[401998943,1768453846829,-300.0,0.00038356,120]
[401998945,1768453846838,-300.0,0.00038356,120]
[401998946,1768453846847,-300.0,0.00038356,120]
[401998948,1768453846856,-300.0,0.00038356,120]
[401998950,1768453846866,-300.0,0.00038356,120]
[401998952,1768453846875,-300.0,0.00038356,120]
[401998955,1768453846885,-300.0,0.00038356,120]
[401998957,1768453846895,-300.0,0.00038356,120]
[401998959,1768453846903,-300.0,0.00038356,120]
[401998961,1768453846912,-300.0,0.00038356,120]
[401998963,1768453846921,-151.0,0.00038356,120]
[401998965,1768453846931,-232.762662,0.00038356,120]
[401998967,1768453846939,-151.749282,0.00038356,120]
[401998969,1768453846949,-151.0,0.00038356,120]
[401998971,1768453846958,-152.755842,0.00038356,120]
[401998973,1768453846967,-151.0,0.00038356,120]
[401998974,1768453846977,-151.0,0.00038356,120]
[401998976,1768453846986,-151.0,0.00038356,120]
[401998979,1768453846995,-151.0,0.00038356,120]
[401998980,1768453847004,-151.0,0.00038356,120]
[401998983,1768453847014,-151.0,0.00038356,120]
[401998985,1768453847023,-151.0,0.00038356,120]
[401998986,1768453847033,-151.0,0.00038356,120]
[401998989,1768453847042,-151.0,0.00038356,120]
[401998991,1768453847051,-151.0,0.00038356,120]
[401998993,1768453847060,-151.0,0.00038356,120]
[401998995,1768453847069,-151.0,0.00038356,120]
[401998996,1768453847078,-151.0,0.00038356,120]
[401998999,1768453847087,-153.866909,0.00038356,120]
[401999001,1768453847096,-151.0,0.00038356,120]
[401999003,1768453847106,-151.0,0.00038356,120]
[401999005,1768453847115,-151.0,0.00038356,120]
[401999007,1768453847124,-151.0,0.00038356,120]
[401999008,1768453847132,-151.0,0.00038356,120]
[401999009,1768453847141,-151.0,0.00038356,120]
[401999010,1768453847151,-187.182346,0.00038356,120]
[401999011,1768453847160,-151.0,0.00038356,120]
[401999012,1768453847170,-151.0,0.00038356,120]
[401999013,1768453847181,-164.30339,0.00038356,120]
[401999014,1768453847190,-151.0,0.00038356,120]
[401999020,1768453847355,-164.30339,0.00038356,120]
[401999021,1768453847364,-170.315716,0.00038356,120]
[401999022,1768453847374,-164.30339,0.00038356,120]
[401999023,1768453847382,-164.30339,0.00038356,120]
[401999024,1768453847391,-151.0,0.00038356,120]
[401999025,1768453847401,-151.0,0.00038356,120]
[401999026,1768453847410,-151.0,0.00038356,120]
[401999027,1768453847419,-151.0,0.00038356,120]
[401999028,1768453847428,-151.0,0.00038356,120]
[401999029,1768453847437,-151.0,0.00038356,120]
[401999030,1768453847446,-210.466369,0.00038356,120]
[401999031,1768453847456,-1413.531346,0.00038356,120]
[401999032,1768453847465,-151.0,0.00038356,120]
[401999033,1768453847474,-210.466369,0.00038356,120]
[401999034,1768453847483,-151.0,0.00038356,120]
[401999035,1768453847492,-1413.531346,0.00038356,120]
[401999036,1768453847502,-210.466369,0.00038356,120]
[401999037,1768453847514,-1413.531346,0.00038356,120]
[401999038,1768453847523,-210.466369,0.00038356,120]
[401999039,1768453847534,-1413.531346,0.00038356,120]
[401999040,1768453847543,-210.466369,0.00038356,120]
[401999041,1768453847553,-1413.531346,0.00038356,120]
[401999042,1768453847562,-210.466369,0.00038356,120]
[401999043,1768453847571,-1413.531346,0.00038356,120]
[401999044,1768453847582,-210.466369,0.00038356,120]
[401999045,1768453847591,-1413.531346,0.00038356,120]
[401999046,1768453847600,-1413.531346,0.00038356,120]
[401999047,1768453847609,-210.466369,0.00038356,120]
[401999048,1768453847619,-151.0,0.00038356,120]
[401999049,1768453847628,-151.0,0.00038356,120]
[401999050,1768453847638,-151.0,0.00038356,120]
[401999051,1768453847648,-151.0,0.00038356,120]
[401999052,1768453847657,-151.0,0.00038356,120]
[401999053,1768453847666,-1152.293388,0.00038356,120]
[401999054,1768453847675,-151.0,0.00038356,120]
[401999055,1768453847684,-1152.293388,0.00038356,120]
[401999056,1768453847693,-151.0,0.00038356,120]
[401999057,1768453847703,-151.0,0.00038356,120]
[401999058,1768453847712,-151.0,0.00038356,120]
[401999059,1768453847721,-1152.293388,0.00038356,120]
[401999061,1768453847730,-151.0,0.00038356,120]
[401999063,1768453847740,-1152.293388,0.00038356,120]
[401999065,1768453847748,-151.0,0.00038356,120]
[401999067,1768453847758,-151.0,0.00038356,120]
[401999069,1768453847767,-1152.293388,0.00038356,120]
[401999071,1768453847776,-1152.293388,0.00038356,120]
[401999073,1768453847786,-151.0,0.00038356,120]
[401999074,1768453847795,-151.0,0.00038356,120]
[401999075,1768453847803,-1152.293388,0.00038356,120]
[401999076,1768453847812,-1152.293388,0.00038356,120]
[401999077,1768453847821,-151.0,0.00038356,120]
[401999078,1768453847830,-151.0,0.00038356,120]
[401999079,1768453847839,-151.0,0.00038356,120]
[401999080,1768453847849,-151.0,0.00038356,120]
[401999081,1768453847858,-2426.078003,0.00038356,120]
[401999082,1768453847867,-2426.078003,0.00038356,120]
[401999083,1768453847876,-2426.078003,0.00038356,120]
[401999084,1768453847885,-2426.078003,0.00038356,120]
[401999085,1768453847894,-2426.078003,0.00038356,120]
[401999086,1768453847903,-2426.078003,0.00038356,120]
[401999087,1768453847912,-2426.078003,0.00038356,120]
[401999088,1768453847921,-2426.078003,0.00038356,120]
[401999089,1768453847930,-151.0,0.00038356,120]
[401999090,1768453847939,-179.75858,0.00038356,120]
[401999091,1768453847949,-172.754527,0.00038356,120]
[401999092,1768453847958,-151.0,0.00038356,120]
[401999093,1768453847967,-151.0,0.00038356,120]
[401999094,1768453847976,-166.657018,0.00038356,120]
[401999095,1768453847986,-151.0,0.00038356,120]
[401999096,1768453847995,-151.0,0.00038356,120]
[401999097,1768453848005,-156.187134,0.00038356,120]
[401999098,1768453848014,-438.430993,0.00038356,120]
[401999099,1768453848023,-438.430993,0.00038356,120]
[401999100,1768453848033,-438.430993,0.00038356,120]
[401999101,1768453848042,-154.02757,0.00038356,120]
[401999102,1768453848051,-438.430993,0.00038356,120]
[401999103,1768453848061,-438.430993,0.00038356,120]
[401999104,1768453848070,-438.430993,0.00038356,120]
[401999105,1768453848079,-151.0,0.00038356,30]
[401999106,1768453848088,-438.430993,0.00038356,120]
[401999107,1768453848098,-151.0,0.00038356,30]
[401999108,1768453848107,-438.430993,0.00038356,120]
[401999109,1768453848117,-151.0,0.00038356,30]
[401999110,1768453848126,-151.0,0.00038356,30]
[401999111,1768453848136,-151.0,0.00038356,30]
[401999112,1768453848145,-151.0,0.00038356,30]
[401999113,1768453848154,-151.0,0.00038356,120]
[401999114,1768453848163,-151.0,0.00038356,120]
[401999115,1768453848173,-151.0,0.00038356,120]
[401999116,1768453848182,-151.0,0.00038356,120]
[401999117,1768453848191,-600.0,0.00038356,2]
[401999118,1768453848200,-1357.2,0.00038378,30]
[401999119,1768453848210,-500.0,0.00038411,60]
[401999120,1768453848219,-152.0,0.00038424,4]
[401999121,1768453848229,-505.0,0.00038465,14]
[401999122,1768453848239,-500.0,0.00038466,60]
[401999123,1768453848248,-458.07906,0.00038488,30]
[401999124,1768453848257,-14045.8174078,0.00038513,3]
[401999125,1768453848266,-500.0,0.0003852,60]
[401999126,1768453848276,-25000.0,0.00038523,10]
[401999127,1768453848286,-151.0,0.00038523,120]
[401999128,1768453848295,-151.0,0.00038523,120]
[401999129,1768453848304,-151.0,0.00038523,120]
[401999130,1768453848314,-151.0,0.00038523,120]
[401999131,1768453848323,-151.0,0.00038523,120]
[401999132,1768453848333,-151.0,0.00038523,120]
[401999133,1768453848342,-199.454498,0.00038523,120]
[401999134,1768453848352,-151.0,0.00038523,120]
[401999135,1768453848368,-151.0,0.00038523,120]
[401999136,1768453848388,-157.703275,0.00038523,120]
[401999137,1768453848407,-686.309569,0.00038523,120]
[401999138,1768453848428,-568.849531,0.00038523,120]
[401999139,1768453848443,-686.309569,0.00038523,120]
[401999140,1768453848459,-568.849531,0.00038523,120]
[401999141,1768453848477,-686.309569,0.00038523,120]
[401999142,1768453848495,-686.309569,0.00038523,120]
[401999143,1768453848514,-568.849531,0.00038523,120]
[401999144,1768453848531,-151.0,0.00038523,120]
[401999145,1768453848551,-568.849531,0.00038523,120]
[401999146,1768453848567,-198.825206,0.00038523,120]
[401999147,1768453848580,-151.0,0.00038523,60]
[401999148,1768453848599,-151.0,0.00038523,60]
[401999149,1768453848613,-151.0,0.00038523,120]
[401999150,1768453848629,-151.0,0.00038523,120]
[401999151,1768453848642,-151.0,0.00038523,120]
[401999152,1768453848657,-154.37494,0.00038523,120]
[401999153,1768453848672,-151.0,0.00038523,120]
[401999154,1768453848687,-151.0,0.00038523,120]
[401999155,1768453848702,-151.0,0.00038523,120]
[401999156,1768453848716,-151.0,0.00038523,120]
[401999157,1768453848731,-151.0,0.00038523,120]
[401999158,1768453848745,-151.0,0.00038523,120]
[401999159,1768453848759,-151.0,0.00038523,120]
[401999160,1768453848775,-151.0,0.00038523,120]
[401999161,1768453848795,-151.0,0.00038523,120]
[401999162,1768453848810,-500.0,0.00038575,60]
[401999163,1768453848825,-300.0,0.00038594,2]
[401999164,1768453848839,-300.0,0.00038594,2]
[401999165,1768453848854,-300.0,0.00038594,2]
[401999166,1768453848869,-300.0,0.00038594,2]
[401999167,1768453848884,-300.0,0.00038594,2]
[401999168,1768453848898,-398.16953504,0.00038594,2]
[401999169,1768453848913,-7022.90870388,0.0003862,3]
[401999170,1768453848928,-300.0,0.0003863,2]
[401999171,1768453848943,-300.0,0.0003863,2]
[401999172,1768453848958,-300.0,0.0003863,2]
[401999173,1768453848973,-300.0,0.0003863,2]
[401999174,1768453848997,-300.0,0.0003863,2]
[401999175,1768453849011,-500.0,0.0003863,60]
[401999176,1768453849026,-2000.0,0.0003863,120]
[401999177,1768453849042,-2000.0,0.0003863,120]
[401999178,1768453849056,-500.0,0.00038685,60]
[401999179,1768453849071,-458.07906,0.00038688,30]
[401999180,1768453849086,-1646.74,0.000387,30]
[401999181,1768453849102,-151.0,0.00038795,120]
[401999182,1768453849116,-151.0,0.00038795,120]
[401999183,1768453849138,-151.0,0.00038795,120]
[401999184,1768453849153,-151.0,0.00038795,120]
[401999185,1768453849169,-176.577466,0.00038795,120]
[401999186,1768453849184,-151.0,0.00038795,30]
[401999187,1768453849198,-151.0,0.00038795,120]
[401999188,1768453849213,-151.0,0.00038795,120]
[401999189,1768453849227,-151.0,0.00038795,120]
[401999190,1768453849242,-151.0,0.00038795,120]
[401999191,1768453849257,-151.0,0.00038795,120]
[401999192,1768453849273,-151.0,0.00038795,120]
[401999193,1768453849289,-244.782181,0.00038795,120]
[401999194,1768453849304,-151.0,0.00038795,120]
[401999195,1768453849318,-151.0,0.00038795,120]
[401999196,1768453849333,-151.0,0.00038795,120]
[401999197,1768453849348,-151.0,0.00038795,120]
[401999198,1768453849363,-151.0,0.00038795,120]
[401999199,1768453849377,-151.0,0.00038795,120]
[401999200,1768453849392,-151.0,0.00038795,120]
[401999201,1768453849408,-151.0,0.00038795,120]
[401999202,1768453849422,-221.277337,0.00038795,120]
[401999203,1768453849437,-151.0,0.00038795,120]
[401999204,1768453849452,-151.0,0.00038795,120]
[401999205,1768453849467,-173.223702,0.00038795,120]
[401999206,1768453849481,-151.0,0.00038795,120]
[401999207,1768453849496,-151.0,0.00038795,120]
[401999208,1768453849513,-151.0,0.00038795,120]
[401999209,1768453849528,-151.0,0.00038795,120]
[401999210,1768453849543,-151.0,0.00038795,120]
[401999211,1768453849557,-151.0,0.00038795,120]
[401999212,1768453849572,-163.055104,0.00038795,120]
[401999213,1768453849590,-163.055104,0.00038795,120]
[401999214,1768453849604,-163.055104,0.00038795,120]
[401999215,1768453849618,-163.055104,0.00038795,120]
[401999216,1768453849632,-151.0,0.00038795,120]
[401999217,1768453849648,-151.0,0.00038795,120]
[401999218,1768453849662,-151.0,0.00038795,120]
[401999219,1768453849677,-259.510366,0.00038795,120]
[401999220,1768453849692,-151.0,0.00038795,120]
[401999221,1768453849706,-151.0,0.00038795,120]
[401999222,1768453849720,-1049.785469,0.00038795,120]
[401999223,1768453849733,-1049.785469,0.00038795,120]
[401999224,1768453849748,-1049.785469,0.00038795,120]
[401999225,1768453849762,-1049.785469,0.00038795,120]
[401999226,1768453849777,-196.726063,0.00038795,120]
[401999227,1768453849792,-154.574606,0.00038795,120]
[401999228,1768453849806,-154.574606,0.00038795,120]
[401999229,1768453849820,-154.574606,0.00038795,120]
[401999230,1768453849834,-154.574606,0.00038795,120]
[401999231,1768453849849,-151.0,0.00038795,120]
[401999232,1768453849864,-164.874729,0.00038795,120]
[401999233,1768453849879,-155.578716,0.00038795,90]
[401999234,1768453849896,-442.833769,0.00038795,120]
[401999235,1768453849911,-442.833769,0.00038795,120]
[401999236,1768453849926,-950.108347,0.00038795,120]
[401999237,1768453849941,-442.833769,0.00038795,120]
[401999238,1768453849956,-950.108347,0.00038795,120]
[401999239,1768453849971,-950.108347,0.00038795,120]
[401999240,1768453850210,-442.833769,0.00038795,120]
[401999241,1768453850240,-950.108347,0.00038795,120]
[401999242,1768453850250,-3000.0,0.00038874,2]
[401999243,1768453850260,-398.72170314,0.000389,31]
[401999244,1768453850270,-2000.0,0.000389,60]
[401999245,1768453850279,-700.0,0.000389,14]
[401999246,1768453850288,-2000.0,0.00038904,120]
[401999247,1768453850298,-600.0,0.00038904,2]
[401999248,1768453850307,-4565.68622705,0.00039,30]
[401999249,1768453850316,-32442.67732667,0.00039,120]
[401999250,1768453850326,-163.0,0.00039,120]
[401999251,1768453850336,-500.0,0.00039,61]
[401999252,1768453850346,-404.90378248,0.00039,120]
[401999253,1768453850356,-1000.0,0.00039,45]
[401999254,1768453850366,-7080.62195638,0.00039,30]
[401999255,1768453850375,-645.42504002,0.00039055,2]
[401999256,1768453850384,-9999.28103627,0.00039071,2]
[401999257,1768453850394,-458.07906,0.00039088,30]
[401999258,1768453850403,-1357.2,0.0003916,120]
[401999259,1768453850412,-2000.0,0.00039178,120]
[401999260,1768453850422,-2000.0,0.00039178,120]
[401999261,1768453850431,-676.98,0.000392,14]
[401999262,1768453850441,-458.07906,0.00039288,30]
[401999263,1768453850450,-6169.93368546,0.00039366,2]
[401999264,1768453850459,-1702.23021912,0.00039367,86]
[401999265,1768453850469,-638.1,0.000394,2]
[401999266,1768453850479,-2000.0,0.00039452,120]
[401999267,1768453850488,-355.194163,0.00039452,120]
[401999268,1768453850497,-355.194163,0.00039452,120]
[401999269,1768453850507,-355.194163,0.00039452,120]
[401999270,1768453850519,-355.194163,0.00039452,120]
[401999271,1768453850528,-171.50931,0.00039452,120]
[401999272,1768453850538,-171.50931,0.00039452,120]
[401999273,1768453850547,-171.50931,0.00039452,120]
[401999274,1768453850558,-171.50931,0.00039452,120]
[401999275,1768453850567,-190.253178,0.00039452,7]
[401999276,1768453850576,-190.253178,0.00039452,7]
[401999277,1768453850588,-190.253178,0.00039452,7]
[401999278,1768453850597,-190.253178,0.00039452,7]
[401999279,1768453850607,-600.0,0.00039452,2]
[401999280,1768453850616,-458.07906,0.00039488,30]
[401999281,1768453850626,-1796.82086515,0.00039621,2]
[401999282,1768453850636,-458.07906,0.00039688,30]
[401999283,1768453850645,-1873.69624537,0.000397,2]
[401999284,1768453850654,-505.0,0.00039723,15]
[401999285,1768453850663,-2000.0,0.00039726,120]
[401999286,1768453850672,-2000.0,0.00039726,120]
[401999287,1768453850682,-458.07906,0.00039888,30]
[401999288,1768453850691,-2000.0,0.000399,60]
[401999289,1768453850700,-1357.2,0.00039942,120]
[401999290,1768453850708,-736.0,0.00039973,120]
[401999291,1768453850717,-236.0,0.00039973,120]
[401999292,1768453850726,-300.0,0.00039999,10]
[401999293,1768453850736,-459.27012628,0.00039999,31]
[401999294,1768453850745,-500.0,0.00039999,31]
[401999295,1768453850754,-181.10862955,0.00039999,31]
[401999296,1768453850763,-228.66710233,0.00039999,31]
[401999297,1768453850772,-500.0,0.00039999,31]
[401999298,1768453850781,-500.0,0.00039999,31]
[401999299,1768453850791,-500.0,0.00039999,31]
[401999300,1768453850800,-646.16901354,0.00039999,31]
[401999301,1768453850809,-151.0,0.0004,120]
[401999302,1768453850819,-500.0,0.0004,120]
[401999303,1768453850828,-500.0,0.0004,120]
[401999304,1768453850837,-1633.3370043,0.0004,120]
[401999305,1768453850847,-20000.0,0.0004,2]
[401999306,1768453850857,-151.0,0.0004,120]
[401999307,1768453850866,-500.0,0.0004,62]
[401999308,1768453850876,-500.0,0.0004,120]
[401999309,1768453850886,-500.0,0.0004,120]
[401999310,1768453850896,-679.0,0.0004,120]
[401999311,1768453850906,-1000.0,0.0004,120]
[401999312,1768453850916,-2000.0,0.0004,120]
[401999313,1768453850925,-141547.12474253,0.0004,14]
[401999314,1768453851683,-151.0,0.00038356,120]
[401999315,1768453851693,-812.00021421,0.0004,14]
[401999316,1768453851703,-767.31289525,0.0004,14]
[401999317,1768453851714,-360.44654913,0.0004,14]
[401999318,1768453851726,-263.38075195,0.0004,14]
[401999319,1768453853828,-2838.0598,0.00018307,2]
[401999320,1768453853838,-1160.06970853,0.00022841,22]
[401999321,1768453853848,-662.37,0.00022841,2]
[401999322,1768453853857,-620.94,0.00022978,2]
[401999323,1768453853866,-179.41,0.00022978,2]
[401999324,1768453853876,-171.66,0.00022978,2]
[401999325,1768453853885,-107.94484402,0.00022978,2]
[401999326,1768453853897,-359.48515598,0.00022978,2]
[401999327,1768453853906,-1160.06970853,0.00023933,26]
[401999328,1768453853915,-496.83393451,0.0002469,2]
[401999329,1768453853924,-6558.0,0.0002548,2]
[401999330,1768453853933,-15201.19591663,0.00025851,2]
[401999331,1768453853943,-691.10877242,0.00029395,46]
[401999332,1768453853952,-691.10877242,0.00030488,50]
[401999333,1768453853961,-691.10877242,0.00032673,57]
[401999334,1768453853971,-691.10877242,0.00033765,61]
[401999335,1768453853980,-301.86446421,0.00035606,2]
[401999336,1768453853989,-151.0,0.00035616,2]
[401999337,1768453853998,-510.73918161,0.00037042,73]
[401999338,1768453854012,-173.706075,0.00038356,120]
[401999339,1768453854021,-505.401536,0.00038356,120]
[401999340,1768453854031,-505.401536,0.00038356,120]
[401999341,1768453854041,-505.401536,0.00038356,120]
[401999342,1768453854051,-505.401536,0.00038356,120]
[401999343,1768453854060,-505.401536,0.00038356,120]
[401999344,1768453854070,-505.401536,0.00038356,120]
[401999345,1768453854079,-50081.11812727,0.0004,14]
[401999346,1768453854091,-6341.30117927,0.0004,14]
[401999347,1768453854101,-778.53523334,0.0004,2]
[401999348,1768453854232,-691.10877242,0.00027211,38]
[401999349,1768453854242,-691.10877242,0.0003158,54]
[401999350,1768453854252,-34.30823694,0.0004,2]
[401999351,1768453854274,-691.10877242,0.00026118,34]
[401999352,1768453854284,-940.84115445,0.0004,2]
[401999353,1768453854294,-500.0,0.0004,120]
[401999354,1768453854303,-1734.0,0.0004,90]
[401999355,1768453854312,-316.48,0.0004,120]
[401999356,1768453854322,-616.56,0.0004,120]
[401999357,1768453854331,-151.0,0.0004,120]
[401999358,1768453854340,-152.609446,0.0004,120]
[401999359,1768453854350,-151.0,0.0004,120]
[401999360,1768453854359,-151.0,0.0004,120]
[401999361,1768453854368,-151.0,0.0004,120]
[401999362,1768453854377,-151.0,0.0004,120]
[401999363,1768453854386,-151.0,0.0004,120]
[401999364,1768453854395,-163.479037,0.0004,120]
[401999365,1768453854404,-151.0,0.0004,120]
[401999366,1768453854414,-151.0,0.0004,120]
[401999367,1768453854426,-151.0,0.0004,120]
[401999368,1768453854435,-151.0,0.0004,120]
[401999369,1768453854445,-151.0,0.0004,120]
[401999370,1768453854454,-151.0,0.0004,120]
[401999371,1768453854464,-151.0,0.0004,120]
[401999372,1768453854473,-151.0,0.0004,120]
[401999373,1768453854482,-224.818649,0.0004,120]
[401999374,1768453854491,-151.0,0.0004,120]
[401999375,1768453854501,-151.861136,0.0004,120]
[401999376,1768453854512,-151.0,0.0004,120]
[401999377,1768453854522,-151.0,0.0004,120]
[401999378,1768453854531,-151.0,0.0004,120]
[401999379,1768453854541,-151.0,0.0004,120]
[401999380,1768453854552,-151.0,0.0004,120]
[401999381,1768453854561,-151.0,0.0004,120]
[401999382,1768453854570,-164.30339,0.0004,120]
[401999383,1768453854579,-151.0,0.0004,120]
[401999384,1768453854590,-164.30339,0.0004,120]
[401999385,1768453854599,-164.30339,0.0004,120]
[401999386,1768453854608,-164.30339,0.0004,120]
[401999387,1768453854620,-151.0,0.0004,120]
[401999388,1768453854629,-158.155931,0.0004,120]
[401999389,1768453854639,-253.0,0.0004,30]
[401999390,1768453854648,-1283.457643,0.0004,120]
[401999391,1768453854657,-1283.457643,0.0004,120]
[401999392,1768453854666,-1283.457643,0.0004,120]
[401999393,1768453854675,-1283.457643,0.0004,120]
[401999394,1768453854685,-150.0,0.0004,120]
[401999395,1768453854695,-600.0,0.0004,2]
[401999396,1768453854704,-458.07906,0.00040088,30]
[401999397,1768453854713,-151.19,0.00040142,120]
[401999398,1768453854722,-9999.28103627,0.0004017,15]
[401999399,1768453854732,-676.98,0.000402,14]
[401999400,1768453854742,-151.19,0.00040242,120]
[401999401,1768453854751,-556.93,0.00040274,2]
[401999402,1768453854760,-2000.0,0.00040274,120]
[401999403,1768453854769,-1311.16496781,0.00040274,120]
[401999404,1768453863866,600.0,0.00027529,120]
[401999405,1768453863985,600.0,0.00026665,120]
[401999406,1768453864085,600.0,0.00029363,120]
[401999407,1768453865826,195.0,0.00027529,120]
[401999408,1768453867597,2500.0,0.00027529,120]
[401999409,1768453867711,1033.01561012,0.00026665,120]
[401999417,1768454600401,-500.0,0.000176,2]
[401999418,1768454600426,-1876.672,0.00017941,2]
[401999419,1768454600448,-166.164,0.00017941,2]
[401999420,1768454600472,-423.51,0.00018,2]
[401999421,1768454600496,-3883.9,0.00018132,2]
[401999422,1768454600521,-300.0,0.00018206,2]
[401999423,1768454600546,-152.18662444,0.00018207,2]
[401999424,1768454600570,-2500.0,0.00018207,2]
[401999425,1768454600593,-375.3848,0.00018207,2]
[401999426,1768454600616,-334.64,0.00018297,3]
[401999427,1768454600640,-1200.0,0.00018305,2]
[401999428,1768454600663,-300.0,0.00018305,2]
[401999429,1768454600686,-509.54109476,0.00018306,2]
[401999430,1768454600713,-260.12,0.00018306,2]
[401999431,1768454600736,-729.31229309,0.00018306,2]
[401999432,1768454600760,-500.0,0.00018306,2]
[401999433,1768454600785,-511.63328925,0.00018306,2]
[401999434,1768454600807,-500.0,0.00018306,2]
[401999435,1768454600829,-500.0,0.00018306,2]
[401999436,1768454600851,-206.25246168,0.00018306,2]
[401999437,1768454600874,-500.0,0.00018306,2]
[401999438,1768454600897,-250.95712074,0.00018306,2]
[401999439,1768454600921,-500.0,0.00018306,2]
[401999440,1768454600945,-465.85509233,0.00018306,2]
[401999441,1768454600966,-317.7215903,0.00018306,2]
[401999442,1768454600989,-500.0,0.00018306,2]
[401999443,1768454601012,-500.0,0.00018306,2]
[401999444,1768454601035,-500.0,0.00018306,2]
[401999445,1768454601058,-500.0,0.00018306,2]
[401999446,1768454601084,-500.0,0.00018306,2]
[401999447,1768454601111,-500.0,0.00018306,2]
[401999448,1768454601134,-500.0,0.00018306,2]
[401999449,1768454601160,-500.0,0.00018306,2]
[401999450,1768454601187,-500.0,0.00018306,2]
[401999451,1768454601215,-500.0,0.00018306,2]
[401999452,1768454601242,-500.0,0.00018306,2]
[401999453,1768454601265,-435.67951264,0.00018306,2]
[401999454,1768454601293,-500.0,0.00018306,2]
[401999455,1768454601320,-500.0,0.00018306,2]
[401999456,1768454601346,-500.0,0.00018306,2]
[401999457,1768454601373,-500.0,0.00018306,2]
[401999458,1768454601399,-347.47012077,0.00018306,2]
[401999459,1768454911083,-454.27281249,0.00016,2]
[401999475,1768455032012,-1852.42,0.00017253,2]
[401999476,1768455032021,-292.02612092,0.00017292,2]
[401999477,1768455032032,-1527.49387908,0.00017292,2]